bitfinex/quotes_SOLUSD_20250821
["timestamp","ask_amount","ask_price","bid_price","bid_amount"]
[1755792833127,8.12010846,182.3,182.27,43.88]
[1755792833322,8.12010846,182.3,182.28,43.88]
[1755792833561,7.43010846,182.31,182.28,43.88]
[1755792833858,7.43010846,182.32,182.28,43.88]
[1755792834154,7.43010846,182.33,182.29,0.66]
[1755792834360,0.75,182.36,182.3,51.31010846]
[1755792834650,0.06,182.36,182.33,7.43010846]
[1755792834853,0.06,182.36,182.34,43.88]
[1755792835045,0.06,182.36,182.34,123.44]
[1755792835550,0.06,182.36,182.34,124.1]
[1755792835850,0.06,182.36,182.35,26.0]
[1755792836165,0.06,182.36,182.35,105.56]
[1755792836331,0.06,182.36,182.35,106.22]
[1755792836659,0.06,182.36,182.35,105.56]
[1755792836884,0.75,182.36,182.35,105.56]
[1755792837029,0.06,182.36,182.35,149.44]
[1755792837348,7.49010846,182.36,182.35,149.44]
[1755792837558,8.4644316,182.36,182.35,43.88]
[1755792838144,7.49010846,182.36,182.35,43.88]
[1755792838456,0.06,182.36,182.35,43.88]
[1755792840758,0.06,182.36,182.35,44.54]
[1755792841851,0.06,182.36,182.35,43.88]
[1755792842059,0.06,182.36,182.35,123.44]
[1755792842779,0.06,182.36,182.35,79.56]
[1755792842938,5.30641591,182.36,182.32,26.0]
[1755792843145,4.55641591,182.33,182.32,26.0]
[1755792843354,4.55641591,182.33,182.32,69.86]
[1755792844075,0.69,182.35,182.32,26.0]
[1755792844274,4.55641591,182.33,182.32,26.0]
[1755792844460,4.55641591,182.33,182.32,69.86]
[1755792844776,4.55641591,182.33,182.32,26.0]
[1755792844961,4.55641591,182.33,182.32,69.86]
[1755792845361,0.06,182.36,182.32,69.86]
[1755792845555,4.55641591,182.33,182.32,69.86]
[1755792845877,4.55641591,182.33,182.32,43.86]
[1755792846457,0.75,182.36,182.32,43.86]
[1755792846458,4.55641591,182.34,182.32,43.86]
[1755792846762,4.55641591,182.34,182.32,44.52]
[1755792846966,4.55641591,182.34,182.33,0.66]
[1755792847268,4.55641591,182.35,182.32,43.86]
[1755792847640,0.06,182.36,182.33,0.66]
[1755792847861,0.06,182.36,182.34,43.86]
[1755792847862,4.61641591,182.36,182.34,43.86]
[1755792848265,5.24641591,182.35,182.31,26.0]
[1755792848469,4.55641591,182.34,182.32,43.86]
[1755792849256,4.55641591,182.34,182.32,44.52]
[1755792849859,0.06,182.36,182.32,44.52]
[1755792850172,4.55641591,182.34,182.32,44.52]
[1755792850373,4.55641591,182.34,182.33,43.86]
[1755792853679,4.61641591,182.36,182.33,44.52]
[1755792853859,4.61641591,182.36,182.33,258.08]
[1755792854391,0.06,182.36,182.33,258.08]
[1755792854567,4.61641591,182.36,182.33,258.08]
[1755792854771,4.61641591,182.36,182.33,257.42]
[1755792855582,4.61641591,182.36,182.33,258.08]
[1755792856175,4.55641591,182.35,182.33,213.56]
[1755792856355,0.06,182.36,182.33,213.56]
[1755792856558,0.06,182.36,182.34,43.84]
[1755792857368,0.71,182.35,182.33,213.56]
[1755792857568,0.06,182.36,182.34,43.84]
[1755792857774,4.55641591,182.35,182.34,43.84]
[1755792858554,4.55641591,182.35,182.33,213.56]
[1755792858796,4.55641591,182.34,182.33,213.56]
[1755792859277,4.55641591,182.34,182.33,257.4]
[1755792859888,4.55641591,182.34,182.33,123.4]
[1755792861785,5.26641591,182.34,182.33,79.56]
[1755792861968,5.26641591,182.34,182.33,123.4]
[1755792862676,4.55641591,182.34,182.33,123.4]
[1755792864057,0.28432314,182.33,182.32,0.03]
[1755792864276,5.55073905,182.33,182.32,0.03]
[1755792865575,4.84073905,182.33,182.32,0.03]
[1755792866281,0.71,182.35,182.32,0.03]
[1755792866499,4.84073905,182.33,182.32,43.85]
[1755792866952,4.55641591,182.33,182.32,43.85]
[1755792867976,0.34432314,182.36,182.32,44.53]
[1755792868167,4.61641591,182.36,182.33,0.68]
[1755792868372,4.55641591,182.35,182.34,43.82]
[1755792869286,4.55641591,182.35,182.34,123.38]
[1755792869674,4.55641591,182.35,182.34,124.06]
[1755792870782,4.55641591,182.35,182.34,80.24]
[1755792870994,4.61641591,182.36,182.34,80.24]
[1755792871287,0.06,182.36,182.35,5.23641591]
[1755792871594,0.06,182.36,182.35,44.5]
[1755792871756,0.06,182.36,182.35,124.06]
[1755792872796,0.06,182.36,182.35,123.38]
[1755792873085,4.61641591,182.36,182.35,123.38]
[1755792873296,4.61641591,182.36,182.35,79.56]
[1755792873476,4.61641591,182.36,182.35,123.38]
[1755792874190,4.90073905,182.36,182.35,79.56]
[1755792874355,4.90073905,182.36,182.35,123.36]
[1755792875368,4.90073905,182.36,182.35,79.56]
[1755792875562,4.90073905,182.36,182.35,123.36]
[1755792875961,4.90073905,182.36,182.35,79.56]
[1755792876167,4.90073905,182.36,182.35,123.36]
[1755792876588,4.90073905,182.36,182.35,79.56]
[1755792876805,4.90073905,182.36,182.35,123.36]
[1755792876976,4.90073905,182.36,182.35,124.04]
[1755792877586,4.90073905,182.36,182.35,123.36]
[1755792882990,4.90073905,182.36,182.35,124.04]
[1755792883363,4.90073905,182.36,182.35,123.36]
[1755792883569,5.61073905,182.36,182.35,79.56]
[1755792883766,5.61073905,182.36,182.35,123.34]
[1755792883992,0.34432314,182.36,182.35,123.34]
[1755792884184,4.90073905,182.36,182.35,123.34]
[1755792884904,4.90073905,182.36,182.35,124.02]
[1755792885067,4.90073905,182.36,182.35,80.24]
[1755792885272,4.90073905,182.36,182.35,124.02]
[1755792885782,0.06,182.36,182.35,124.02]
[1755792887284,5.58073905,182.36,182.35,123.34]
[1755792888299,5.58073905,182.36,182.35,79.56]
[1755792888602,5.58073905,182.36,182.35,123.34]
[1755792889094,4.90073905,182.36,182.35,123.34]
[1755792890388,4.90073905,182.36,182.35,123.32]
[1755792890780,0.28432314,182.35,182.32,79.59]
[1755792891101,0.96432314,182.35,182.33,43.76]
[1755792892084,0.28432314,182.35,182.33,43.76]
[1755792892404,0.34432314,182.36,182.34,0.67]
[1755792892587,0.20216157,182.36,182.35,44.43]
[1755792892790,0.06,182.36,182.35,123.99]
[1755792893194,0.06,182.36,182.35,44.43]
[1755792896508,5.29641591,182.36,182.32,79.59]
[1755792896706,4.55641591,182.33,182.32,0.03]
[1755792897007,4.84073905,182.33,182.32,43.79]
[1755792898831,5.52073905,182.33,182.32,0.03]
[1755792899102,5.52073905,182.33,182.32,43.79]
[1755792899304,0.96432314,182.33,182.32,43.77]
[1755792899603,5.52073905,182.33,182.32,43.77]
[1755792899911,0.28432314,182.33,182.32,43.77]
[1755792900090,4.84073905,182.33,182.32,43.77]
[1755792900293,0.06,182.36,182.32,124.0]
[1755792900492,0.06,182.36,182.33,0.67]
[1755792900689,0.06,182.36,182.34,44.41]
[1755792901205,5.52073905,182.35,182.32,79.59]
[1755792901407,4.84073905,182.33,182.32,79.59]
[1755792901610,4.84073905,182.33,182.32,123.33]
[1755792902089,4.55641591,182.35,182.32,124.0]
[1755792902414,0.28432314,182.34,182.32,124.0]
[1755792903307,4.84073905,182.34,182.32,123.33]
[1755792903504,4.84073905,182.34,182.32,79.59]
[1755792903505,4.84073905,182.33,182.32,79.59]
[1755792903682,0.96432314,182.33,182.32,123.33]
[1755792903885,5.52073905,182.33,182.32,123.33]
[1755792904697,5.52073905,182.33,182.32,0.03]
[1755792905608,19.11633306,182.33,182.32,0.03]
[1755792905812,4.84073905,182.31,182.3,0.03]
[1755792906111,8.4859699,182.31,182.3,0.03]
[1755792906297,4.84073905,182.31,182.3,0.03]
[1755792906497,4.55641591,182.34,182.3,0.03]
[1755792906697,4.55641591,182.34,182.3,48.99641591]
[1755792906698,0.14216157,182.34,182.3,48.99641591]
[1755792907004,0.06,182.36,182.31,0.67]
[1755792907219,0.06,182.36,182.35,4.55641591]
[1755792907417,0.06,182.36,182.35,48.96641591]
[1755792908104,0.06,182.38,182.37,26.0]
[1755792908309,0.06,182.38,182.37,77.15952368]
[1755792908489,0.06,182.38,182.37,77.82952368]
[1755792908904,0.06,182.38,182.37,91.42511769]
[1755792909090,0.06,182.38,182.37,96.90847569]
[1755792909288,0.06,182.38,182.37,104.32799937]
[1755792909598,0.29217001,182.4,182.38,13.59559401]
[1755792909794,0.29217001,182.4,182.39,51.15952368]
[1755792909993,0.29217001,182.4,182.39,51.82952368]
[1755792910314,7.41952368,182.53,182.42,26.0]
[1755792910517,8.09952368,182.54,182.48,7.41952368]
[1755792910719,7.41952368,182.52,182.49,43.74]
[1755792911020,8.09952368,182.51,182.5,43.74]
[1755792911192,8.09952368,182.51,182.46,7.41952368]
[1755792911390,8.09952368,182.51,182.47,43.74]
[1755792911591,8.09952368,182.5,182.45,7.41952368]
[1755792911809,8.09952368,182.49,182.46,43.74]
[1755792911990,8.09952368,182.48,182.46,43.72]
[1755792912194,0.28432314,182.47,182.46,43.72]
[1755792912505,8.38384682,182.47,182.41,7.41952368]
[1755792912713,32.8174843,182.55,182.31,13.71258321]
[1755792912714,7.41952368,182.44,182.42,43.72]
[1755792912888,0.28432314,182.44,182.43,43.72]
[1755792914608,8.38384682,182.44,182.43,43.72]
[1755792914997,0.28432314,182.44,182.43,43.72]
[1755792915220,7.41952368,182.5,182.43,51.80952368]
[1755792915415,7.41952368,182.5,182.45,7.41952368]
[1755792915631,7.41952368,182.5,182.46,44.39]
[1755792915799,0.28432314,182.53,182.47,7.41952368]
[1755792915996,7.41952368,182.52,182.47,8.08952368]
[1755792916196,0.68,182.54,182.48,0.67]
[1755792916408,7.41952368,182.53,182.49,43.72]
[1755792916823,7.41952368,182.53,182.46,26.7]
[1755792916824,7.41952368,182.52,182.46,26.7]
[1755792917119,7.41952368,182.52,182.47,51.13952368]
[1755792917328,7.41952368,182.49,182.48,43.72]
[1755792917493,0.14216157,182.48,182.44,8.11952368]
[1755792917694,0.28432314,182.48,182.45,43.72]
[1755792917904,0.28432314,182.48,182.45,44.42]
[1755792918103,0.28432314,182.48,182.45,43.72]
[1755792918398,7.41952368,182.47,182.43,7.41952368]
[1755792918619,7.70384682,182.47,182.46,43.72]
[1755792919014,7.70384682,182.47,182.42,8.11952368]
[1755792919208,7.70384682,182.47,182.43,44.4]
[1755792919917,7.41952368,182.45,182.44,43.7]
[1755792920101,0.28432314,182.45,182.44,43.7]
[1755792920506,0.28432314,182.44,182.43,43.7]
[1755792921202,0.06,182.5,182.43,51.81952368]
[1755792921424,0.14216157,182.49,182.45,7.41952368]
[1755792921614,0.14216157,182.49,182.46,44.4]
[1755792921797,0.14216157,182.49,182.46,123.96]
[1755792922003,0.14216157,182.49,182.47,0.7]
[1755792922202,7.47952368,182.5,182.47,0.7]
[1755792922427,0.06,182.5,182.47,0.7]
[1755792922725,0.28432314,182.49,182.47,0.7]
[1755792922928,0.14216157,182.49,182.47,0.7]
[1755792923236,0.28432314,182.49,182.46,43.7]
[1755792923417,0.28432314,182.49,182.47,0.7]
[1755792924137,0.28432314,182.49,182.46,51.11952368]
[1755792924465,0.28432314,182.49,182.48,0.7]
[1755792924647,0.06,182.5,182.48,8.11952368]
[1755792924808,0.06,182.5,182.49,51.11952368]
[1755792925114,0.06,182.5,182.49,51.81952368]
[1755792925532,0.06,182.5,182.49,83.29927599]
[1755792925832,0.06,182.5,182.49,77.81952368]
[1755792926132,0.06,182.5,182.49,96.89487]
[1755792926341,0.06,182.5,182.49,157.87439368]
[1755792926511,0.06,182.52,182.49,157.87439368]
[1755792926849,0.06,182.52,182.51,33.41952368]
[1755792927003,0.06,182.52,182.51,112.97952368]
[1755792927209,0.06,182.54,182.53,13.59559401]
[1755792927405,0.06,182.54,182.53,70.19366916]
[1755792927639,0.06,182.54,182.53,70.89366916]
[1755792928441,0.06,182.54,182.53,204.89366916]
[1755792928842,0.06,182.54,182.53,155.71511769]
[1755792929149,0.06,182.54,182.53,105.5]
[1755792929315,0.06,182.54,182.53,156.59952368]
[1755792929519,0.06,182.54,182.53,130.59952368]
[1755792929739,0.06,182.54,182.53,157.29952368]
[1755792930446,0.06,182.54,182.53,144.89511769]
[1755792930616,0.06,182.54,182.53,150.37366916]
[1755792930838,0.06,182.54,182.53,144.89511769]
[1755792931142,0.06,182.54,182.53,131.29952368]
[1755792931351,0.06,182.54,182.53,157.29952368]
[1755792931965,0.06,182.54,182.53,156.59952368]
[1755792932266,0.06,182.54,182.53,149.88]
[1755792933271,5.47410471,182.68,182.53,149.88]
[1755792933272,10.0,182.71,182.54,79.44]
[1755792933483,0.67,182.64,182.54,227.03777502]
[1755792933780,0.67,182.64,182.54,233.21384535]
[1755792934065,8.08952368,182.64,182.54,240.63336903]
[1755792934260,0.67,182.64,182.54,240.63336903]
[1755792934636,8.08952368,182.64,182.54,240.63336903]
[1755792934839,0.14216157,182.63,182.54,240.63336903]
[1755792935038,0.28432314,182.63,182.54,240.63336903]
[1755792935437,0.67,182.62,182.54,240.63336903]
[1755792935639,0.95432314,182.61,182.54,278.81511769]
[1755792935952,0.28432314,182.59,182.54,220.85952368]
[1755792936147,0.28432314,182.59,182.54,283.1]
[1755792936354,0.28432314,182.59,182.54,290.51952368]
[1755792936678,0.06,182.57,182.54,144.81511769]
[1755792936844,0.06,182.57,182.54,150.29336903]
[1755792937336,0.06,182.57,182.54,144.81511769]
[1755792937536,0.06,182.57,182.54,150.29336903]
[1755792937766,0.06,182.57,182.54,152.48893903]
[1755792938355,0.06,182.57,182.54,103.35068769]
[1755792938562,0.06,182.57,182.54,152.48893903]
[1755792939052,0.06,182.57,182.54,103.35068769]
[1755792939252,0.06,182.57,182.54,130.51952368]
[1755792940071,0.06,182.57,182.54,158.71545568]
[1755792940246,0.06,182.57,182.54,132.71545568]
[1755792940447,0.06,182.57,182.54,156.51952368]
[1755792940861,0.06,182.57,182.54,112.85952368]
[1755792941064,0.06,182.57,182.54,156.51952368]
[1755792941577,0.06,182.57,182.54,157.21952368]
[1755792941784,0.06,182.57,182.54,156.51952368]
[1755792942452,0.06,182.57,182.54,112.85952368]
[1755792942772,0.06,182.57,182.55,79.34]
[1755792942962,0.06,182.57,182.56,51.05952368]
[1755792944170,0.06,182.57,182.56,51.75952368]
[1755792944671,0.06,182.57,182.56,70.83276887]
[1755792944870,0.06,182.57,182.56,204.83276887]
[1755792945464,0.06,182.57,182.56,217.23559401]
[1755792945650,0.06,182.57,182.56,224.65511769]
[1755792945853,0.06,182.57,182.56,225.35511769]
[1755792946051,0.06,182.57,182.56,181.71511769]
[1755792946252,0.06,182.57,182.56,160.0]
[1755792946554,0.73,182.57,182.56,43.64]
[1755792947078,0.73,182.57,182.54,26.0]
[1755792947300,0.67,182.56,182.55,43.64]
[1755792947587,0.67,182.56,182.53,7.41952368]
[1755792947757,0.95432314,182.56,182.54,43.64]
[1755792947960,0.95432314,182.56,182.51,0.03]
[1755792947961,0.14216157,182.55,182.51,86.78952368]
[1755792948253,0.67,182.54,182.52,43.64]
[1755792948478,0.67,182.54,182.51,7.44952368]
[1755792948479,0.67,182.53,182.51,26.03]
[1755792948782,0.14216157,182.54,182.51,0.03]
[1755792948783,7.56168525,182.54,182.51,0.03]
[1755792948950,7.70384682,182.52,182.51,0.03]
[1755792949150,0.95432314,182.52,182.51,0.03]
[1755792949351,8.37384682,182.52,182.51,0.03]
[1755792949551,0.67,182.52,182.51,0.03]
[1755792949777,0.67,182.55,182.51,7.44952368]
[1755792949978,0.67,182.54,182.53,7.41952368]
[1755792950160,0.67,182.54,182.52,43.64]
[1755792950476,0.67,182.53,182.52,43.64]
[1755792950855,0.67,182.53,182.51,0.03]
[1755792951056,0.28432314,182.52,182.51,43.67]
[1755792951250,0.67,182.54,182.51,51.08952368]
[1755792951451,0.67,182.54,182.52,7.41952368]
[1755792951659,0.67,182.54,182.53,43.64]
[1755792951867,0.28432314,182.56,182.53,43.64]
[1755792952061,0.95432314,182.56,182.53,51.05952368]
[1755792952259,0.67,182.55,182.53,43.64]
[1755792952578,0.28432314,182.56,182.53,51.05952368]
[1755792952775,0.28432314,182.56,182.54,7.41952368]
[1755792952979,0.28432314,182.56,182.55,43.64]
[1755792953584,0.95432314,182.56,182.55,43.64]
[1755792953766,0.06,182.57,182.54,7.41952368]
[1755792954080,1.01432314,182.57,182.55,43.64]
[1755792954585,0.67,182.56,182.55,43.64]
[1755792956265,8.37384682,182.56,182.55,43.64]
[1755792956479,0.95432314,182.56,182.55,43.64]
[1755792957079,0.28432314,182.55,182.52,7.41952368]
[1755792957279,0.28432314,182.55,182.53,43.64]
[1755792957484,0.28432314,182.55,182.53,79.34]
[1755792957786,8.08952368,182.54,182.53,79.34]
[1755792957960,8.37384682,182.54,182.53,79.34]
[1755792958158,8.37384682,182.54,182.52,43.64]
[1755792958359,8.08952368,182.53,182.52,43.64]
[1755792958788,0.28432314,182.52,182.51,79.37]
[1755792958986,0.95432314,182.52,182.51,123.01]
[1755792959600,8.37384682,182.52,182.51,0.03]
[1755792959888,21.96944083,182.52,182.51,0.03]
[1755792960204,26.3153317,182.52,182.51,0.03]
[1755792960365,0.28432314,182.5,182.49,0.03]
[1755792960693,21.29944083,182.5,182.49,0.03]
[1755792960907,0.95432314,182.5,182.49,0.03]
[1755792961064,8.37384682,182.5,182.49,0.03]
[1755792961386,52.0160005,182.5,182.49,0.03]
[1755792962286,47.96944083,182.5,182.49,0.03]
[1755792963296,0.67,182.5,182.49,0.03]
[1755792963666,8.08952368,182.5,182.49,0.03]
[1755792963865,8.23168525,182.5,182.49,0.03]
[1755792964090,8.37384682,182.5,182.49,0.03]
[1755792964292,0.95432314,182.5,182.49,0.03]
[1755792964483,7.70384682,182.5,182.49,0.03]
[1755792964895,8.37384682,182.5,182.49,0.03]
[1755792965298,0.95432314,182.5,182.49,0.03]
[1755792965481,8.37384682,182.5,182.49,0.03]
[1755792966898,0.28432314,182.5,182.49,0.03]
[1755792967082,7.70384682,182.5,182.49,0.03]
[1755792967286,7.41952368,182.5,182.49,0.03]
[1755792967698,7.41952368,182.51,182.49,0.03]
[1755792967902,17.96460454,182.57,182.49,0.03]
[1755792967903,7.56168525,182.5,182.49,0.03]
[1755792968216,0.28432314,182.5,182.49,0.03]
[1755792968385,0.67,182.53,182.49,0.7]
[1755792968585,7.41952368,182.52,182.49,0.7]
[1755792968782,7.41952368,182.54,182.49,87.91952368]
[1755792969003,7.41952368,182.53,182.5,0.67]
[1755792969220,7.41952368,182.55,182.51,0.67]
[1755792969387,0.67,182.55,182.49,87.91952368]
[1755792969582,0.06,182.53,182.49,87.91952368]
[1755792969792,0.06,182.53,182.5,0.67]
[1755792970015,7.47952368,182.53,182.49,79.83]
[1755792970209,7.41952368,182.51,182.49,123.47]
[1755792970514,7.76384682,182.53,182.49,123.47]
[1755792970709,0.28432314,182.52,182.5,0.67]
[1755792970935,0.28432314,182.52,182.51,0.67]
[1755792972211,0.06,182.53,182.51,80.47]
[1755792972512,0.34432314,182.53,182.51,80.47]
[1755792973009,0.34432314,182.53,182.52,0.67]
[1755792973183,0.06,182.53,182.51,79.8]
[1755792973387,0.06,182.53,182.52,51.72952368]
[1755792974698,0.06,182.53,182.52,57.20837531]
[1755792975043,0.06,182.53,182.52,51.72952368]
[1755792975207,0.06,182.53,182.52,57.20837531]
[1755792975897,0.06,182.53,182.52,59.40442831]
[1755792976693,0.06,182.53,182.52,287.34790748]
[1755792976914,0.06,182.53,182.52,286.80002232]
[1755792977124,0.06,182.56,182.55,26.0]
[1755792977445,0.06,182.56,182.55,77.03952368]
[1755792977794,0.06,182.56,182.55,77.74952368]
[1755792978624,0.06,182.56,182.55,83.77527004]
[1755792978830,0.06,182.57,182.56,13.59559401]
[1755792979023,0.65,182.67,182.59,26.0]
[1755792979200,0.65,182.67,182.64,7.41952368]
[1755792979405,0.65,182.67,182.65,43.62]
[1755792979613,7.70384682,182.68,182.56,13.59559401]
[1755792979810,0.65,182.66,182.61,33.419523]
[1755792980013,0.93432314,182.66,182.62,51.03952368]
[1755792980224,0.28432314,182.66,182.63,7.41952368]
[1755792980451,0.28432314,182.66,182.64,43.62]
[1755792981908,0.14216157,182.66,182.64,43.62]
[1755792982113,0.28432314,182.66,182.64,123.42]
[1755792983117,0.28432314,182.66,182.65,43.6]
[1755792983837,8.35384682,182.71,182.65,51.72952368]
[1755792984131,8.21168525,182.71,182.67,7.41952368]
[1755792984309,0.79216157,182.71,182.68,43.6]
[1755792984515,0.65,182.7,182.68,43.6]
[1755792984829,0.14216157,182.7,182.68,43.6]
[1755792985036,0.79216157,182.7,182.68,43.6]
[1755792985416,0.14216157,182.7,182.68,43.6]
[1755792985617,0.79216157,182.7,182.68,43.6]
[1755792985825,0.28432314,182.69,182.68,43.6]
[1755792986025,7.70384682,182.69,182.68,43.6]
[1755792986222,0.93432314,182.69,182.68,43.6]
[1755792986727,0.28432314,182.69,182.68,43.6]
[1755792987914,0.93432314,182.73,182.68,43.6]
[1755792988115,0.28432314,182.69,182.68,43.6]
[1755792988628,7.70384682,182.69,182.68,43.6]
[1755792988933,8.35384682,182.69,182.68,43.58]
[1755792989326,8.35384682,182.69,182.62,16.461357]
[1755792989511,0.28432314,182.65,182.63,43.58]
[1755792990115,0.28432314,182.65,182.64,43.58]
[1755792990918,0.28432314,182.65,182.62,0.71]
[1755792991123,0.28432314,182.65,182.63,43.58]
[1755792991836,0.28432314,182.65,182.63,44.29]
[1755792992042,0.28432314,182.65,182.63,0.71]
[1755792992242,0.28432314,182.65,182.64,44.29]
[1755792992624,0.28432314,182.65,182.64,43.58]
[1755792993150,0.28432314,182.65,182.62,5.25254221]
[1755792993339,0.28432314,182.65,182.63,43.58]
[1755792993915,4.82686535,182.66,182.63,43.58]
[1755792994121,0.28432314,182.64,182.6,5.25254221]
[1755792994321,0.93432314,182.64,182.61,43.58]
[1755792994632,0.93432314,182.64,182.62,43.58]
[1755792994841,5.47686535,182.64,182.62,43.58]
[1755792995040,5.47686535,182.64,182.61,79.8]
[1755792995221,0.93432314,182.64,182.62,43.58]
[1755792995821,0.65,182.63,182.62,43.58]
[1755792996135,0.93432314,182.63,182.62,43.58]
[1755792996331,5.47686535,182.63,182.59,79.8]
[1755792996538,4.82686535,182.6,182.59,79.8]
[1755792996753,0.28432314,182.6,182.59,123.36]
[1755792997133,0.65,182.65,182.59,128.61254221]
[1755792997458,5.19254221,182.65,182.6,4.54254221]
[1755792997648,0.28432314,182.63,182.61,43.56]
[1755792998557,0.28432314,182.63,182.59,79.8]
[1755792998747,0.28432314,182.61,182.6,43.56]
[1755792999944,0.28432314,182.65,182.6,48.81254221]
[1755793000147,0.14216157,182.65,182.61,0.71]
[1755793000451,4.54254221,182.67,182.62,48.81254221]
[1755793000623,26.0,182.7,182.64,4.54254221]
[1755793000624,0.65,182.7,182.64,4.54254221]
[1755793000826,0.65,182.7,182.65,43.56]
[1755793000827,4.54254221,182.69,182.65,43.56]
[1755793001027,0.28432314,182.68,182.65,44.27]
[1755793001359,5.19254221,182.69,182.65,44.27]
[1755793001651,0.28432314,182.67,182.66,43.56]
[1755793001821,4.82686535,182.67,182.66,43.56]
[1755793002226,0.28432314,182.67,182.66,43.56]
[1755793002849,0.93432314,182.67,182.63,87.20139534]
[1755793003055,7.68571848,182.67,182.64,43.56]
[1755793003358,0.28432314,182.67,182.65,0.71]
[1755793003523,0.06,182.67,182.66,43.56]
[1755793004426,0.06,182.67,182.61,79.8]
[1755793004427,8.11139534,182.67,182.61,79.8]
[1755793004629,0.28432314,182.64,182.62,43.56]
[1755793004836,0.28432314,182.64,182.62,44.27]
[1755793005139,0.28432314,182.64,182.62,43.56]
[1755793005553,0.06,182.67,182.63,8.11139534]
[1755793005757,0.34432314,182.67,182.64,44.27]
[1755793006541,0.34432314,182.67,182.65,0.71]
[1755793006741,0.06,182.67,182.66,43.56]
[1755793008441,0.06,182.67,182.66,44.26]
[1755793010157,0.06,182.67,182.66,51.66139534]
[1755793010852,0.06,182.67,182.66,57.13604769]
[1755793011055,0.06,182.67,182.66,51.66139534]
[1755793012473,0.06,182.67,182.66,26.0]
[1755793012645,0.06,182.67,182.66,76.94139534]
[1755793013055,0.06,182.67,182.66,77.64139534]
[1755793013647,0.06,182.67,182.66,34.10139534]
[1755793013849,0.06,182.67,182.66,77.64139534]
[1755793016451,0.06,182.67,182.66,75.71465235]
[1755793016649,0.06,182.67,182.66,83.11604769]
[1755793016867,0.06,182.67,182.66,91.35960369]
[1755793017074,0.06,182.67,182.66,104.9551977]
[1755793017476,0.06,182.67,182.66,99.48054535]
[1755793017852,0.06,182.67,182.66,104.9551977]
[1755793018166,0.06,182.67,182.66,77.64139534]
[1755793018783,0.06,182.67,182.66,83.09604769]
[1755793019281,0.06,182.67,182.66,85.29053369]
[1755793019451,0.06,182.67,182.66,79.81588134]
[1755793019652,0.06,182.67,182.66,35.59588134]
[1755793019852,0.06,182.67,182.66,76.92139534]
[1755793020254,0.76,182.67,182.64,7.543557]
[1755793020569,0.76,182.67,182.65,50.92139534]
[1755793020752,0.06,182.67,182.65,43.52]
[1755793020951,0.06,182.67,182.64,26.0]
[1755793020952,0.76,182.67,182.64,26.0]
[1755793021187,0.76,182.67,182.63,7.40139534]
[1755793021490,0.28432314,182.63,182.62,2.194968]
[1755793021690,8.38571848,182.63,182.62,45.714968]
[1755793022054,8.38571848,182.63,182.62,43.52]
[1755793023171,8.38571848,182.63,182.57,8.415718]
[1755793023362,0.28432314,182.61,182.58,43.52]
[1755793023563,0.7,182.61,182.58,43.52]
[1755793023763,0.7,182.61,182.58,50.92139534]
[1755793023948,0.98432314,182.61,182.58,43.52]
[1755793024156,0.98432314,182.61,182.59,43.52]
[1755793024696,0.7,182.6,182.59,43.52]
[1755793025792,0.28432314,182.61,182.59,43.52]
[1755793025992,0.7,182.6,182.59,43.52]
[1755793026481,0.28432314,182.61,182.59,43.52]